bitfinex/quotes_SOLUSD_20230116
["timestamp","ask_amount","ask_price","bid_price","bid_amount"]
[1673875284991,17.0,23.447,23.43,24.85]
[1673875285202,20.0,23.446,23.43,24.85]
[1673875285622,32.02,23.445,23.43,24.85]
[1673875285848,32.02,23.445,23.431,20.0]
[1673875292351,32.02,23.445,23.432,17.0]
[1673875292579,32.02,23.445,23.433,20.0]
[1673875292779,32.02,23.445,23.432,20.0]
[1673875295618,32.02,23.445,23.43,24.85]
[1673875295825,32.02,23.445,23.402,71.80304203]
[1673875295826,20.0,23.443,23.42,24.95]
[1673875296051,17.0,23.442,23.421,12.10497149]
[1673875296265,32.02,23.442,23.421,12.10497149]
[1673875296887,32.02,23.442,23.422,17.0]
[1673875297092,32.02,23.442,23.43,24.85]
[1673875297302,32.02,23.442,23.431,20.0]
[1673875297507,32.02,23.442,23.43,24.85]
[1673875297724,32.02,23.442,23.431,20.0]
[1673875298896,32.02,23.442,23.432,17.0]
[1673875299425,32.02,23.442,23.433,20.0]
[1673875299618,32.02,23.442,23.42,24.95]
[1673875300052,32.02,23.442,23.422,12.10497149]
[1673875300981,32.02,23.442,23.423,37.0]
[1673875301206,32.02,23.442,23.423,17.0]
[1673875301419,32.02,23.442,23.424,12.10497149]
[1673875301607,32.02,23.442,23.425,17.0]
[1673875301815,32.02,23.442,23.424,12.10497149]
[1673875304657,32.02,23.442,23.42,24.95]
[1673875304873,37.0,23.441,23.42,24.95]
[1673875305083,20.0,23.44,23.42,24.95]
[1673875305298,20.0,23.44,23.4,290.86294453]
[1673875305299,37.0,23.439,23.41,24.69]
[1673875305522,237.26539069,23.439,23.41,24.69]
[1673875305730,104.9316331,23.438,23.4,25.07]
[1673875305946,37.0,23.437,23.4,25.07]
[1673875306160,20.0,23.436,23.4,25.07]
[1673875306371,37.0,23.435,23.4,25.07]
[1673875306579,24.67,23.43,23.4,25.07]
[1673875306800,57.0,23.429,23.4,25.07]
[1673875306988,100.55915848,23.429,23.4,25.07]
[1673875307204,19.88561012,23.428,23.401,20.0]
[1673875307416,37.0,23.427,23.401,20.0]
[1673875307740,11.51915848,23.426,23.4,25.07]
[1673875307961,40.0,23.425,23.4,25.07]
[1673875308138,17.0,23.424,23.4,25.07]
[1673875308576,32.05,23.423,23.4,25.07]
[1673875308781,17.0,23.422,23.39,24.72]
[1673875308998,20.0,23.421,23.391,20.0]
[1673875309209,17.0,23.42,23.391,20.0]
[1673875309619,52.05,23.419,23.391,20.0]
[1673875309829,20.0,23.417,23.391,20.0]
[1673875310035,20.0,23.415,23.391,20.0]
[1673875310246,20.0,23.414,23.391,12.10497149]
[1673875310458,113.867,23.413,23.391,12.10497149]
[1673875310992,20.0,23.411,23.391,12.10497149]
[1673875311412,32.07,23.41,23.391,12.10497149]
[1673875311620,32.07,23.41,23.392,17.0]
[1673875311938,32.07,23.41,23.392,29.10497149]
[1673875312133,32.07,23.41,23.392,12.10497149]
[1673875312564,32.07,23.41,23.393,20.0]
[1673875315099,17.0,23.409,23.393,20.0]
[1673875315420,17.0,23.409,23.391,20.0]
[1673875315635,32.07,23.408,23.391,20.0]
[1673875316689,20.0,23.406,23.391,20.0]
[1673875317210,32.07,23.405,23.391,20.0]
[1673875318891,20.0,23.404,23.391,20.0]
[1673875319506,20.0,23.406,23.392,17.0]
[1673875319842,20.0,23.406,23.393,20.0]
[1673875320056,20.0,23.406,23.394,17.0]
[1673875320364,32.07,23.41,23.394,17.0]
[1673875320570,32.07,23.41,23.394,29.10497149]
[1673875320983,32.07,23.41,23.394,17.0]
[1673875322761,32.07,23.41,23.394,29.10497149]
[1673875323304,32.07,23.41,23.4,24.69]
[1673875323510,117.5072,23.426,23.401,17.0]
[1673875323511,32.05,23.418,23.401,17.0]
[1673875323719,32.05,23.418,23.402,20.0]
[1673875323937,32.05,23.418,23.403,17.0]
[1673875324860,32.05,23.418,23.402,20.0]
[1673875325066,32.05,23.418,23.401,20.0]
[1673875325490,20.0,23.417,23.4,24.69]
[1673875325724,20.0,23.416,23.4,24.69]
[1673875325910,52.06,23.416,23.4,24.69]
[1673875326336,20.0,23.415,23.4,24.69]
[1673875326548,20.0,23.414,23.4,24.69]
[1673875326759,52.06,23.414,23.4,24.69]
[1673875326965,32.06,23.414,23.4,24.69]
[1673875327198,32.06,23.416,23.401,17.0]
[1673875327386,20.0,23.417,23.401,29.10497149]
[1673875327595,20.0,23.417,23.402,33.29510226]
[1673875327935,32.05,23.418,23.402,33.29510226]
[1673875327936,32.05,23.418,23.403,13.29510226]
[1673875328164,115.1317,23.422,23.403,30.29510226]
[1673875328165,32.05,23.42,23.403,30.29510226]
[1673875328376,32.05,23.424,23.41,24.72]
[1673875328566,32.05,23.425,23.411,37.0]
[1673875328777,117.5072,23.426,23.411,50.29510226]
[1673875329192,117.5072,23.426,23.411,37.0]
[1673875329729,32.05,23.425,23.411,37.0]
[1673875334469,20.0,23.424,23.411,37.0]
[1673875334997,20.0,23.422,23.411,37.0]
[1673875336144,32.05,23.423,23.411,37.0]
[1673875337934,32.04,23.428,23.411,50.29510226]
[1673875338152,32.04,23.428,23.42,24.76]
[1673875338457,32.04,23.43,23.42,24.76]
[1673875339305,32.04,23.43,23.421,20.0]
[1673875339522,52.03,23.433,23.421,37.0]
[1673875341411,20.0,23.433,23.421,37.0]
[1673875342041,20.0,23.433,23.42,24.76]
[1673875342239,32.04,23.432,23.41,24.76]
[1673875342454,32.04,23.432,23.413,13.29510226]
[1673875343408,32.04,23.432,23.42,24.76]
[1673875343616,245.4902,23.439,23.42,24.76]
[1673875343617,32.03,23.437,23.42,24.76]
[1673875343827,32.03,23.437,23.421,13.29510226]
[1673875344022,32.03,23.437,23.421,30.29510226]
[1673875344443,32.03,23.437,23.422,13.29510226]
[1673875344768,32.03,23.437,23.423,37.0]
[1673875345806,20.0,23.436,23.423,20.0]
[1673875346243,20.0,23.434,23.421,20.0]
[1673875346672,32.03,23.433,23.421,20.0]
[1673875350334,17.0,23.432,23.421,20.0]
[1673875350559,17.0,23.432,23.41,24.72]
[1673875350757,32.04,23.431,23.41,24.72]
[1673875351081,20.0,23.43,23.41,24.72]
[1673875351283,17.0,23.429,23.41,10.643]
[1673875351489,20.0,23.428,23.41,24.85]
[1673875351702,17.0,23.427,23.41,24.85]
[1673875351915,49.04,23.427,23.41,24.85]
[1673875352235,20.0,23.426,23.402,13.29510226]
[1673875352427,17.0,23.425,23.402,13.29510226]
[1673875352643,40.0,23.424,23.402,13.29510226]
[1673875352851,20.0,23.422,23.402,13.29510226]
[1673875353075,17.0,23.421,23.402,13.29510226]
[1673875353284,20.0,23.42,23.402,13.29510226]
[1673875353812,32.05,23.419,23.402,13.29510226]
[1673875354767,32.05,23.419,23.403,20.0]
[1673875356841,20.0,23.423,23.41,24.88]
[1673875357064,52.05,23.425,23.41,24.88]
[1673875357065,32.04,23.429,23.411,17.0]
[1673875357275,20.0,23.44,23.412,20.0]
[1673875357276,32.04,23.431,23.412,20.0]
[1673875357493,20.0,23.44,23.413,17.0]
[1673875357494,32.03,23.433,23.413,17.0]
[1673875357684,32.04,23.43,23.413,17.0]
[1673875357897,32.04,23.432,23.413,30.29510226]
[1673875358118,32.04,23.429,23.414,13.29510226]
[1673875358419,32.04,23.431,23.415,17.0]
[1673875358629,32.03,23.433,23.415,17.0]
[1673875358835,147.7797,23.433,23.416,13.29510226]
[1673875359070,147.7797,23.433,23.417,17.0]
[1673875359492,20.0,23.432,23.42,24.75]
[1673875359806,20.0,23.432,23.406,20.0]
[1673875359807,20.0,23.432,23.41,24.75]
[1673875359999,32.04,23.431,23.414,13.29510226]
[1673875360209,32.04,23.431,23.42,24.75]
[1673875362851,32.04,23.431,23.421,17.0]
[1673875363058,115.7497,23.433,23.422,20.0]
[1673875363059,32.04,23.432,23.422,20.0]
[1673875363370,20.0,23.431,23.42,24.75]
[1673875363776,32.04,23.43,23.42,24.75]
[1673875368531,32.04,23.43,23.41,24.87]
[1673875368842,37.0,23.429,23.411,20.0]
[1673875369243,20.0,23.427,23.411,20.0]
[1673875369675,32.04,23.426,23.411,20.0]
[1673875369881,20.0,23.425,23.411,20.0]
[1673875370716,20.0,23.425,23.41,24.87]
[1673875371058,20.0,23.423,23.411,17.0]
[1673875372526,20.0,23.423,23.41,24.72]
[1673875372924,32.05,23.422,23.41,24.72]
[1673875374197,112.4685,23.426,23.411,20.0]
[1673875374411,112.4685,23.426,23.412,17.0]
[1673875374621,112.4685,23.426,23.413,20.0]
[1673875374812,112.4685,23.426,23.414,17.0]
[1673875375349,112.4685,23.426,23.414,30.29510226]
[1673875375555,112.4685,23.426,23.414,13.29510226]
[1673875375886,20.0,23.425,23.413,20.0]
[1673875376097,52.05,23.425,23.411,20.0]
[1673875376937,52.05,23.425,23.412,17.0]
[1673875377134,52.05,23.425,23.413,20.0]
[1673875377859,20.0,23.425,23.414,17.0]
[1673875379333,147.7797,23.433,23.42,24.72]
[1673875379556,115.7497,23.433,23.421,37.0]
[1673875381668,32.03,23.437,23.421,37.0]
[1673875381878,52.03,23.438,23.421,37.0]
[1673875382820,52.03,23.438,23.421,50.29510226]
[1673875383035,20.0,23.438,23.421,50.29510226]
[1673875383660,32.02,23.445,23.43,24.72]
[1673875383863,32.02,23.445,23.431,17.0]
[1673875384192,32.02,23.443,23.431,17.0]
[1673875384395,32.02,23.444,23.432,20.0]
[1673875384594,32.02,23.445,23.433,17.0]
[1673875384809,32.01,23.448,23.433,17.0]
[1673875385562,108.7887,23.45,23.433,17.0]
[1673875385957,52.01,23.449,23.433,17.0]
[1673875389454,52.01,23.449,23.432,20.0]
[1673875389768,52.01,23.449,23.431,20.0]
[1673875391227,51.51,23.449,23.431,20.0]
[1673875391973,51.51,23.449,23.432,17.0]
[1673875392282,51.51,23.449,23.433,20.0]
[1673875392498,51.51,23.449,23.434,17.0]
[1673875392702,51.51,23.449,23.433,20.0]
[1673875392899,51.51,23.449,23.431,20.0]
[1673875393108,17.0,23.448,23.431,20.0]
[1673875393317,51.51,23.449,23.431,20.0]
[1673875393531,32.02,23.447,23.431,20.0]
[1673875393863,20.0,23.447,23.431,20.0]
[1673875394072,32.02,23.446,23.431,20.0]
[1673875394502,32.02,23.446,23.432,17.0]
[1673875394680,32.02,23.446,23.433,20.0]
[1673875395013,32.02,23.446,23.434,17.0]
[1673875396170,32.02,23.446,23.433,20.0]
[1673875396381,32.02,23.446,23.43,24.72]
[1673875396382,32.02,23.446,23.431,20.0]
[1673875396582,32.02,23.446,23.432,17.0]
[1673875396795,32.02,23.446,23.433,20.0]
[1673875397114,20.0,23.447,23.433,20.0]
[1673875397309,20.0,23.447,23.434,17.0]
[1673875402482,32.02,23.446,23.434,17.0]
[1673875403641,20.0,23.447,23.434,17.0]
[1673875408686,20.0,23.445,23.434,17.0]
[1673875408892,20.0,23.445,23.433,20.0]
[1673875409102,37.0,23.444,23.42,24.72]
[1673875409325,69.02,23.444,23.42,24.72]
[1673875409858,20.0,23.443,23.42,24.72]
[1673875410074,17.0,23.442,23.42,24.72]
[1673875410276,20.0,23.441,23.42,24.72]
[1673875410477,129.1809,23.44,23.42,24.72]
[1673875410693,20.0,23.439,23.42,24.72]
[1673875411130,20.0,23.437,23.42,24.72]
[1673875411325,20.0,23.437,23.421,20.0]
[1673875411534,32.03,23.436,23.421,20.0]
[1673875412908,32.03,23.436,23.422,17.0]
[1673875413116,32.03,23.436,23.423,20.0]
[1673875413444,32.03,23.436,23.424,17.0]
[1673875413751,110.8415,23.439,23.43,24.73]
[1673875415640,32.03,23.438,23.43,24.73]
[1673875417419,32.03,23.438,23.431,17.0]
[1673875417747,110.8415,23.439,23.431,17.0]
[1673875418054,112.1809,23.44,23.431,17.0]
[1673875418677,112.1809,23.44,23.432,20.0]
[1673875419533,112.1809,23.44,23.431,20.0]
[1673875421831,20.0,23.439,23.42,24.72]
[1673875422039,170.2974,23.439,23.42,24.72]
[1673875422894,170.2974,23.439,23.421,17.0]
[1673875423298,170.2974,23.439,23.422,20.0]
[1673875423508,170.2974,23.439,23.423,17.0]
[1673875431489,32.03,23.439,23.43,24.72]
[1673875431710,112.1809,23.44,23.431,17.0]
[1673875431919,32.03,23.439,23.431,17.0]
[1673875432441,112.1809,23.44,23.431,17.0]
[1673875433412,32.02,23.444,23.431,17.0]
[1673875433604,32.02,23.444,23.432,20.0]
[1673875433929,32.02,23.445,23.433,17.0]
[1673875434243,32.02,23.446,23.433,17.0]
[1673875434433,24.87,23.47,23.433,17.0]
[1673875434434,32.01,23.45,23.433,17.0]
[1673875434643,32.01,23.45,23.434,20.0]
[1673875434853,32.01,23.451,23.435,17.0]
[1673875435296,32.01,23.451,23.44,24.73]
[1673875435491,32.01,23.453,23.441,17.0]
[1673875435701,32.0,23.457,23.442,20.0]
[1673875435908,32.01,23.452,23.443,17.0]
[1673875436230,32.0,23.456,23.443,17.0]
[1673875436443,32.0,23.457,23.441,17.0]
[1673875436643,32.0,23.455,23.442,20.0]
[1673875436851,32.0,23.456,23.443,17.0]
[1673875437062,32.0,23.457,23.443,17.0]
[1673875437273,32.0,23.455,23.443,17.0]
[1673875437488,32.0,23.456,23.443,17.0]
[1673875437814,31.99,23.463,23.443,17.0]
[1673875438013,31.99,23.463,23.45,24.72]
[1673875438222,31.99,23.463,23.451,37.0]
[1673875438763,31.99,23.464,23.451,37.0]
[1673875438976,31.99,23.462,23.451,37.0]
[1673875439290,31.99,23.463,23.451,37.0]
[1673875439478,32.0,23.461,23.452,13.29510226]
[1673875439687,31.99,23.466,23.453,37.0]
[1673875439917,31.99,23.467,23.453,37.0]
[1673875440125,115.2725,23.468,23.453,37.0]
[1673875440126,31.99,23.465,23.453,37.0]
[1673875440337,31.99,23.469,23.454,13.29510226]
[1673875440541,51.97,23.477,23.46,24.73]
[1673875440759,51.97,23.477,23.461,20.0]
[1673875440976,51.97,23.477,23.462,17.0]
[1673875441179,51.97,23.477,23.463,20.0]
[1673875441501,51.97,23.477,23.464,17.0]
[1673875441913,31.97,23.477,23.464,17.0]
[1673875442109,31.96,23.485,23.464,17.0]
[1673875443165,22.14624677,23.505,23.47,24.87]
[1673875443375,178.54263125,23.532,23.465,33.29510226]
[1673875443376,111.3125,23.516,23.49,24.77]
[1673875443585,20.0,23.515,23.491,37.0]
[1673875443804,20.0,23.515,23.492,20.0]
[1673875444004,31.92,23.514,23.493,20.0]
[1673875444635,31.92,23.514,23.492,20.0]
[1673875445072,31.92,23.514,23.492,53.93750205]
[1673875445273,31.92,23.514,23.493,17.0]
[1673875446322,31.92,23.514,23.494,53.40255599]
[1673875446536,31.92,23.514,23.495,20.0]
[1673875446861,31.92,23.515,23.496,17.0]
[1673875447076,31.93,23.513,23.496,51.09687599]
[1673875447382,31.92,23.514,23.492,20.0]
[1673875447587,31.93,23.512,23.493,17.0]
[1673875447806,31.93,23.513,23.493,17.0]
[1673875448001,31.93,23.511,23.492,17.0]
[1673875448211,31.93,23.512,23.493,20.0]
[1673875448426,31.93,23.51,23.494,17.0]
[1673875448646,31.93,23.511,23.493,20.0]
[1673875448855,31.93,23.511,23.465,129.252]
[1673875448856,31.93,23.509,23.48,24.89]
[1673875449043,61.77140253,23.51,23.48,24.89]
[1673875449256,48.42056101,23.508,23.48,24.89]
[1673875449463,20.0,23.506,23.48,24.89]
[1673875449692,20.0,23.504,23.48,24.89]
[1673875449900,128.7693,23.503,23.48,24.89]
[1673875450112,20.0,23.502,23.48,24.89]
[1673875450332,17.0,23.501,23.48,24.89]
[1673875450537,48.94,23.501,23.481,20.0]
[1673875450729,20.0,23.5,23.481,20.0]
[1673875451063,20.0,23.5,23.48,24.89]
[1673875451064,17.0,23.499,23.48,24.89]
[1673875451380,20.0,23.498,23.48,24.89]
[1673875451902,31.95,23.497,23.48,24.89]
[1673875452092,20.0,23.496,23.48,24.89]
[1673875452302,20.0,23.496,23.481,17.0]
[1673875452523,31.95,23.495,23.481,17.0]
[1673875452729,20.0,23.494,23.48,24.89]
[1673875452933,20.0,23.494,23.481,17.0]
[1673875453154,31.95,23.493,23.481,17.0]
[1673875453373,31.95,23.493,23.48,24.89]
[1673875454212,20.0,23.502,23.48,24.89]
[1673875454213,31.94,23.499,23.481,20.0]
[1673875454408,111.7693,23.503,23.482,17.0]
[1673875454632,31.94,23.502,23.49,24.77]
[1673875454834,31.93,23.51,23.491,37.0]
[1673875455256,20.0,23.512,23.491,50.29510226]
[1673875455582,31.93,23.509,23.491,50.29510226]
[1673875455791,31.93,23.511,23.491,50.29510226]
[1673875457984,31.9,23.528,23.5,24.77]
[1673875458310,31.9,23.528,23.501,37.0]
[1673875458311,31.92,23.516,23.501,37.0]
[1673875458523,20.0,23.526,23.501,37.0]
[1673875458719,31.91,23.525,23.501,37.0]
[1673875459772,20.0,23.524,23.501,37.0]
[1673875460193,31.91,23.523,23.501,37.0]
[1673875460737,20.0,23.522,23.501,37.0]
[1673875460929,17.0,23.521,23.501,37.0]
[1673875461134,20.0,23.52,23.501,37.0]
[1673875461559,31.92,23.519,23.501,37.0]
[1673875461978,31.92,23.519,23.501,20.0]
[1673875463576,31.92,23.519,23.5,24.77]
[1673875463577,37.0,23.518,23.5,24.77]
[1673875463785,20.0,23.517,23.5,24.77]
[1673875463993,51.92,23.517,23.5,24.77]
[1673875464202,20.0,23.516,23.5,24.77]
[1673875464422,20.0,23.515,23.5,24.77]
[1673875464732,51.92,23.515,23.49,24.77]
[1673875464940,147.73200759,23.514,23.48,24.89]
[1673875465128,147.73200759,23.514,23.481,13.29510226]
[1673875465339,88.42056101,23.513,23.481,13.29510226]
[1673875465549,17.0,23.512,23.481,13.29510226]
[1673875465773,20.0,23.511,23.481,13.29510226]
[1673875466095,17.0,23.51,23.481,13.29510226]
[1673875466411,40.0,23.509,23.481,13.29510226]
[1673875466616,17.0,23.508,23.481,13.29510226]
[1673875466937,20.0,23.506,23.481,13.29510226]
[1673875467172,20.0,23.505,23.482,20.0]
[1673875467355,37.0,23.504,23.482,20.0]
[1673875467861,20.0,23.502,23.482,20.0]
[1673875468078,20.0,23.502,23.47,24.72]
[1673875468079,37.0,23.501,23.47,24.72]
[1673875468295,20.0,23.5,23.47,24.72]
[1673875468498,17.0,23.499,23.47,24.72]
[1673875468715,31.94,23.499,23.48,24.72]
[1673875469338,20.0,23.5,23.48,24.72]
[1673875472174,20.0,23.515,23.501,20.0]
[1673875472700,20.0,23.515,23.502,17.0]
[1673875473645,36.49056101,23.515,23.49,24.87]
[1673875473869,31.92,23.514,23.48,24.72]
[1673875474064,20.0,23.513,23.48,24.72]
[1673875474279,20.0,23.512,23.48,24.72]
[1673875474488,20.0,23.51,23.48,24.72]
[1673875474741,20.0,23.509,23.48,24.72]
[1673875474957,20.0,23.508,23.48,24.72]
[1673875475151,20.0,23.506,23.48,24.72]
[1673875475476,20.0,23.505,23.48,24.5]
[1673875475682,20.0,23.503,23.48,24.5]
[1673875476091,20.0,23.501,23.481,20.0]
[1673875476952,20.0,23.499,23.481,20.0]
[1673875477159,17.0,23.498,23.47,24.5]
[1673875477352,20.0,23.497,23.47,24.5]
[1673875477561,20.0,23.495,23.47,24.5]
[1673875477766,138.5951,23.494,23.47,24.5]
[1673875477982,20.0,23.493,23.47,24.5]
[1673875478417,31.95,23.492,23.47,24.5]
[1673875478952,51.95,23.493,23.471,17.0]
[1673875479157,31.95,23.493,23.48,24.71]
[1673875479345,118.5951,23.494,23.481,17.0]
[1673875480089,20.0,23.493,23.481,17.0]
[1673875480301,20.0,23.493,23.482,20.0]
[1673875480504,20.0,23.493,23.47,24.71]
[1673875480720,20.0,23.491,23.47,24.71]
[1673875481130,31.96,23.49,23.47,24.71]
[1673875482308,20.0,23.489,23.47,24.71]
[1673875482541,53.49056101,23.489,23.46,24.9]
[1673875482719,61.90280506,23.488,23.46,24.9]
[1673875482925,17.0,23.487,23.46,24.9]
[1673875483135,20.0,23.485,23.46,24.9]
[1673875483333,20.0,23.483,23.46,24.9]
[1673875483549,113.4187,23.482,23.46,24.9]
[1673875483776,145.3887,23.482,23.46,24.9]
[1673875483995,113.4187,23.482,23.47,24.54]
[1673875484493,145.3887,23.482,23.47,24.54]
[1673875484705,113.4187,23.482,23.47,24.54]
[1673875485258,51.97,23.481,23.46,24.9]
[1673875486396,56.94140253,23.481,23.461,20.0]
[1673875486609,31.97,23.481,23.461,20.0]
[1673875486823,113.4187,23.482,23.47,24.71]
[1673875487240,31.97,23.481,23.47,24.71]
[1673875487655,113.4187,23.482,23.471,17.0]
[1673875487992,113.4187,23.482,23.47,24.71]
[1673875488202,31.97,23.481,23.47,24.71]
[1673875488408,31.96,23.486,23.47,24.71]
[1673875488606,20.0,23.487,23.471,20.0]
[1673875488815,31.96,23.486,23.471,20.0]
[1673875489464,31.96,23.486,23.472,17.0]
[1673875489867,31.96,23.488,23.48,24.71]
[1673875490078,145.3078,23.496,23.481,17.0]
[1673875490304,145.3078,23.496,23.482,20.0]
[1673875490495,113.3578,23.496,23.483,17.0]
[1673875491046,20.0,23.495,23.483,17.0]
[1673875491973,20.0,23.495,23.482,20.0]
[1673875492175,20.0,23.495,23.481,20.0]
[1673875493036,20.0,23.495,23.47,24.71]
[1673875493037,24.97140253,23.495,23.47,24.71]
[1673875493224,68.95,23.494,23.47,24.71]
[1673875493569,31.51915848,23.493,23.47,24.71]
[1673875493746,41.46196354,23.493,23.47,24.71]
[1673875493962,20.0,23.491,23.47,24.71]
[1673875494184,17.0,23.49,23.47,24.71]
[1673875494411,20.0,23.489,23.47,24.71]
[1673875494802,20.0,23.487,23.47,24.71]
[1673875495228,31.96,23.486,23.471,20.0]
[1673875495851,31.96,23.486,23.472,17.0]
[1673875496065,31.96,23.486,23.471,20.0]
[1673875496301,31.96,23.489,23.472,17.0]
[1673875496487,20.0,23.491,23.473,29.90756547]
[1673875496693,20.0,23.491,23.474,17.0]
[1673875497339,20.0,23.491,23.472,17.0]
[1673875500072,51.95,23.493,23.48,24.71]
[1673875500273,31.95,23.493,23.481,17.0]
[1673875500484,31.95,23.495,23.481,17.0]
[1673875500694,31.95,23.493,23.481,17.0]
[1673875501971,113.3578,23.496,23.481,17.0]
[1673875502284,113.3578,23.496,23.482,20.0]
[1673875502503,20.0,23.497,23.483,17.0]
[1673875504078,51.94,23.502,23.49,24.71]
[1673875504265,20.0,23.502,23.49,24.71]
[1673875504479,20.0,23.502,23.491,17.0]
[1673875504895,20.0,23.502,23.482,20.0]
[1673875505234,20.0,23.5,23.481,20.0]
[1673875505634,31.94,23.499,23.481,20.0]
[1673875506163,20.0,23.502,23.482,17.0]
[1673875506368,20.0,23.502,23.49,24.5]
[1673875506595,20.0,23.502,23.491,17.0]
[1673875506912,20.0,23.502,23.49,24.5]
[1673875507125,31.94,23.501,23.481,20.0]
[1673875507343,36.91140253,23.501,23.481,20.0]
[1673875507654,20.0,23.5,23.481,20.0]
[1673875508052,20.0,23.498,23.481,20.0]
[1673875508500,20.0,23.498,23.482,17.0]
[1673875508686,31.94,23.499,23.482,17.0]
[1673875508910,31.94,23.501,23.482,17.0]
[1673875509234,20.0,23.5,23.482,17.0]
[1673875510586,51.94,23.5,23.482,17.0]
[1673875510795,51.94,23.5,23.481,20.0]
[1673875512368,20.0,23.5,23.482,17.0]
[1673875513757,51.94,23.5,23.482,17.0]
[1673875514893,51.94,23.5,23.481,20.0]
[1673875516273,51.94,23.5,23.482,17.0]
[1673875517644,51.94,23.5,23.481,20.0]
[1673875519111,51.94,23.5,23.482,17.0]
[1673875519318,51.94,23.5,23.481,20.0]
[1673875519529,51.94,23.5,23.48,24.71]
[1673875519739,20.0,23.498,23.47,24.71]
[1673875520050,20.0,23.496,23.47,24.71]
[1673875520261,20.0,23.494,23.47,24.71]
[1673875520469,17.0,23.493,23.47,24.71]
[1673875520785,20.0,23.492,23.47,24.71]
[1673875521106,17.0,23.491,23.47,24.71]
[1673875521301,20.0,23.49,23.47,24.71]
[1673875521628,21.46196354,23.489,23.47,24.71]
[1673875521822,53.42196354,23.489,23.47,24.71]
[1673875522033,20.0,23.488,23.47,24.71]
[1673875522356,24.97140253,23.488,23.47,24.71]
[1673875522568,20.0,23.486,23.47,24.71]
[1673875523081,31.96,23.485,23.47,24.71]
[1673875523527,31.96,23.485,23.471,17.0]
[1673875523706,31.96,23.485,23.472,20.0]
[1673875524351,31.96,23.485,23.473,17.0]